bitfinex-derivatives/quotes_ETHF0:USTF0_20250410
["timestamp","ask_amount","ask_price","bid_price","bid_amount"]
[1744273942760,0.00944019,1587.3,1587.1,1.26044]
[1744273942966,0.00944019,1587.3,1587.2,1.26043]
[1744273943360,0.00944019,1587.3,1587.2,6.26043]
[1744273943758,0.00944019,1587.3,1587.2,12.25643]
[1744273943961,1.6903,1587.8,1587.2,14.2038]
[1744273944168,6.6903,1587.8,1587.6,1.26005]
[1744273944368,3.2078,1587.7,1587.2,12.35482]
[1744273944572,3.2078,1587.7,1587.6,1.26011]
[1744273945068,3.2078,1587.7,1587.2,12.35482]
[1744273945069,3.2078,1587.7,1587.5,1.26013]
[1744273945369,3.2078,1587.7,1587.6,1.26011]
[1744273945669,1.6672,1587.7,1587.6,1.26011]
[1744273946062,0.00944019,1587.8,1587.7,1.26003]
[1744273948572,3.21724019,1587.8,1587.3,8.26209019]
[1744273948776,3.21724019,1587.8,1587.7,1.26003]
[1744273948968,0.00944019,1587.8,1587.7,1.26003]
[1744273949470,0.00944019,1587.8,1587.7,6.26003]
[1744273949670,0.00944019,1587.8,1587.7,47.06003]
[1744273950983,0.00944019,1587.8,1587.7,52.11432019]
[1744273951281,1.25977,1588.1,1587.7,54.06209019]
[1744273951474,3.2078,1588.0,1587.9,1.25983]
[1744273952685,0.00944019,1588.1,1588.0,1.25979]
[1744273953783,1.70534019,1588.1,1588.0,1.25979]
[1744273953985,2.96507019,1588.1,1587.9,1.25983]
[1744273954182,3.2078,1588.0,1587.9,1.25987]
[1744273954378,4.9037,1588.0,1587.8,6.32362038]
[1744273954688,1.25987,1587.9,1587.8,0.00944019]
[1744273954879,2.96837,1587.9,1587.8,0.00944019]
[1744273955079,7.96837,1587.9,1587.8,0.00944019]
[1744273955682,12.96837,1587.9,1587.8,0.00944019]
[1744273955889,6.7085,1587.9,1587.0,3.2078]
[1744273956088,2.96847,1587.8,1587.6,1.2601]
[1744273956286,3.2078,1587.7,1587.6,1.26011]
[1744273956983,3.9791,1588.0,1587.6,6.26011]
[1744273957190,4.46759,1588.0,1587.8,1.25989]
[1744273957484,4.9163,1588.0,1587.9,1.25987]
[1744273957687,3.2078,1588.0,1587.9,1.25987]
[1744273958388,4.46759,1588.0,1587.8,1.25988]
[1744273958685,3.2078,1588.0,1587.6,7.76916672]
[1744273958890,3.2078,1588.0,1587.9,1.25987]
[1744273960187,3.2078,1588.0,1587.6,6.50905672]
[1744273960382,1.25991,1587.9,1587.7,1.25996]
[1744273960586,4.8928,1588.0,1587.6,6.50905672]
[1744273960787,4.8928,1588.0,1587.8,1.25994]
[1744273961085,1.25987,1587.9,1587.7,1.25997]
[1744273961389,6.15264,1588.0,1587.8,1.25995]
[1744273961689,3.2078,1588.0,1587.9,1.25987]
[1744273962086,3.2078,1588.0,1587.6,9.65932672]
[1744273962381,1.25995,1587.8,1587.6,5.996]
[1744273962587,3.2078,1587.7,1587.6,7.25604]
[1744273963682,4.8291,1587.7,1587.6,7.25604]
[1744273963884,4.8291,1587.7,1587.6,5.996]
[1744273964889,9.8291,1587.7,1587.4,46.796]
[1744273965191,4.46799,1587.5,1587.4,40.8]
[1744273966086,9.46799,1587.5,1587.4,40.8]
[1744273966286,10.29959,1587.5,1587.4,40.8]
[1744273966993,4.46799,1587.5,1587.4,40.8]
[1744273967492,9.46799,1587.5,1587.4,40.8]
[1744273967895,1.26047,1587.2,1586.8,2.52513]
[1744273968089,4.46823,1587.2,1586.8,12.16496038]
[1744273968390,4.46799,1587.5,1587.4,1.26027]
[1744273968688,0.00944019,1587.2,1587.1,7.25651]
[1744273968893,1.6787,1587.6,1587.4,1.26022]
[1744273969092,2.93886,1587.6,1587.4,1.26022]
[1744273969293,4.46805,1587.5,1587.3,1.26031]
[1744273969594,6.14669,1587.5,1587.4,1.26027]
[1744273969796,4.8865,1587.5,1587.4,1.26027]
[1744273970197,6.14677,1587.5,1587.3,1.26975019]
[1744273970389,1.26027,1587.4,1587.3,1.26979019]
[1744273970688,2.84457,1587.4,1587.3,0.00944019]
[1744273970894,3.2078,1587.5,1587.4,1.26027]
[1744273971097,4.7921,1587.5,1587.4,1.26027]
[1744273971392,1.26027,1587.4,1587.3,0.00944019]
[1744273971591,2.84457,1587.4,1587.3,0.00944019]
[1744273971994,7.84457,1587.4,1587.3,0.00944019]
[1744273972192,2.84457,1587.4,1587.3,0.00944019]
[1744273972692,7.84457,1587.4,1587.3,0.00944019]
[1744273973398,13.64277,1587.4,1587.3,0.00944019]
[1744273973792,3.15088,1587.3,1586.7,0.6304]
[1744273973985,3.2078,1586.9,1586.8,1.26075]
[1744273974390,4.46847,1586.9,1586.8,1.26075]
[1744273974587,4.46847,1586.9,1586.7,1.1389883]
[1744273974796,1.6441,1586.8,1586.7,2.3998183]
[1744273974997,2.90485,1586.8,1586.7,2.3998183]
[1744273975190,1.6441,1586.8,1586.7,42.69123]
[1744273975391,1.6441,1586.8,1586.7,41.4304]
[1744273975596,2.90485,1586.8,1586.7,41.4304]
[1744273976102,2.90485,1586.8,1586.7,42.69123]
[1744273976392,2.90485,1586.8,1586.7,41.4304]
[1744273976799,1.6441,1586.8,1586.7,42.69123]
[1744273976993,3.2078,1586.9,1586.8,1.26075]
[1744273977602,4.8701,1586.9,1586.8,1.26075]
[1744273977799,5.27569,1587.2,1587.0,1.26055]
[1744273977995,1.26065,1587.0,1586.8,1.26071]
[1744273978194,3.2078,1587.0,1586.9,1.26067]
[1744273978495,3.2078,1587.0,1586.7,41.4304]
[1744273978801,4.46846,1587.0,1586.8,1.26073]
[1744273979099,3.2078,1587.0,1586.8,1.26073]
[1744273979302,3.2078,1587.0,1586.8,2.88923]
[1744273979303,4.46842,1587.0,1586.8,2.88923]
[1744273979498,1.26067,1586.9,1586.8,2.88923]
[1744273979699,4.46844,1587.0,1586.8,2.88923]
[1744273979899,1.26053,1587.1,1586.9,1.26067]
[1744273980101,9.0152,1587.2,1586.9,1.6285]
[1744273980297,4.46839,1587.0,1586.8,1.26068]
[1744273980603,1.26075,1586.8,1586.7,40.8]
[1744273980792,4.46855,1586.8,1586.7,40.8]
[1744273981095,1.2613,1586.1,1586.0,15.37481736]
[1744273981286,3.2078,1586.3,1586.2,1.26117]
[1744273981491,9.52352344,1586.7,1586.2,1.26117]
[1744273981492,3.2078,1586.5,1586.4,1.26106]
[1744273982188,0.00944019,1586.6,1586.5,1.26098]
[1744273982393,8.21737019,1586.6,1586.4,1.6303]
[1744273982593,6.95644019,1586.6,1586.2,40.8]
[1744273982798,3.21724019,1586.6,1586.5,1.26098]
[1744273983000,0.00944019,1586.6,1586.5,1.26098]
[1744273983395,4.09500968,1587.2,1586.9,1.26063]
[1744273983603,3.2078,1587.2,1587.1,1.26044]
[1744273983803,4.46814,1587.4,1587.0,1.26059]
[1744273984102,3.2078,1587.2,1587.0,1.26059]
[1744273984404,3.2078,1587.2,1586.9,5.996]
[1744273984600,3.7392,1587.4,1586.9,5.996]
[1744273984601,4.89819331,1587.6,1587.1,3.2078]
[1744273984799,2.40730234,1587.6,1587.5,1.26019]
[1744273984999,2.40730234,1587.6,1587.5,4.46799]
[1744273985301,2.40730234,1587.6,1587.5,45.26799]
[1744273985798,7.30927249,1587.7,1587.6,1.26011]
[1744273986111,12.05957249,1587.7,1587.6,1.6959]
[1744273986303,9.73011163,1587.5,1587.4,0.00944019]
[1744273986502,12.93791163,1587.5,1587.4,0.00944019]
[1744273986701,20.04520163,1587.5,1587.4,0.00944019]
[1744273986903,20.32751163,1587.5,1587.4,0.00944019]
[1744273987198,12.11971163,1587.5,1587.4,38.26971019]
[1744273988203,11.27261163,1587.5,1587.4,38.26971019]
[1744273988402,9.73011163,1587.5,1587.4,38.26971019]
[1744273988902,9.73011163,1587.5,1587.4,37.00944019]
[1744273989202,15.53631163,1587.5,1587.4,37.00944019]
[1744273989397,0.8062,1587.5,1587.4,37.00944019]
[1744273989602,2.4483,1587.5,1587.4,37.00944019]
[1744273990204,3.70849,1587.5,1587.4,37.00944019]
[1744273990403,8.70849,1587.5,1587.4,0.00944019]
[1744273990793,2.4483,1587.5,1587.4,0.00944019]
[1744273991006,8.70849,1587.5,1587.4,0.00944019]
[1744273991208,11.37462344,1587.5,1586.6,17.95141736]
[1744273991507,3.2078,1586.9,1586.6,14.74361736]
[1744273991807,2.416,1586.8,1586.7,38.26083]
[1744273992197,5.18681344,1587.2,1586.7,38.7044]
[1744273992408,5.6238,1587.1,1586.8,1.26072]
[1744273992608,1.5777,1587.0,1586.7,37.0]
[1744273992806,2.83831,1587.0,1586.7,38.26076]
[1744273993102,2.83831,1587.0,1586.7,42.996]
[1744273993103,1.5777,1587.0,1586.7,42.996]
[1744273993404,4.46855,1586.8,1586.7,37.0]
[1744273993609,3.2078,1586.8,1586.7,37.0]
[1744273993799,3.2078,1586.8,1586.7,38.26083]
[1744273994199,3.2078,1586.8,1586.7,37.0]
[1744273994400,8.2078,1586.8,1586.7,37.0]
[1744273994599,9.46855,1586.8,1586.7,37.0]
[1744273994802,1.26083,1586.7,1586.6,0.00944019]
[1744273995107,2.5076,1586.7,1586.6,1.27035019]
[1744273995299,2.5076,1586.7,1586.6,38.27035019]
[1744273995702,1.6838,1586.7,1586.6,38.27035019]
[1744273995903,1.6838,1586.7,1586.6,39.82855019]
[1744273996506,2.94463,1586.7,1586.6,37.00944019]
[1744273996708,7.94463,1586.7,1586.6,0.00944019]
[1744273996903,7.94466,1586.7,1586.5,14.74361736]
[1744273997104,4.8916,1586.6,1586.5,14.74361736]
[1744273997304,4.8916,1586.6,1586.5,51.74361736]
[1744273997504,11.15251,1586.6,1586.5,51.74361736]
[1744273998310,4.8916,1586.6,1586.5,51.74361736]
[1744273998509,6.15251,1586.6,1586.5,51.74361736]
[1744273998907,6.15251,1586.6,1586.0,21.02284462]
[1744273998908,3.15247,1586.5,1585.9,0.6304]
[1744273999099,4.46918,1586.1,1585.7,5.996]
[1744273999301,3.9852,1586.0,1585.9,1.26146]
[1744273999499,2.3245,1586.0,1585.9,1.26146]
[1744273999705,2.3245,1586.0,1585.9,6.26146]
[1744273999910,0.00944019,1586.1,1586.0,1.26138]
[1744274000109,7.13412344,1586.4,1586.3,1.26114]
[1744274000110,3.92632344,1586.4,1586.3,1.26114]
[1744274000307,1.6848,1586.3,1586.2,1.26122]
[1744274000707,4.8926,1586.3,1586.1,1.26126]
[1744274000907,0.8526,1586.2,1586.1,1.26126]
[1744274001107,1.6848,1586.2,1586.1,1.26126]
[1744274001308,2.94605,1586.2,1586.0,1.27078019]
[1744274001515,5.3217,1586.1,1586.0,0.00944019]
[1744274001714,5.3217,1586.1,1585.8,37.0]
[1744274001715,6.5485,1586.1,1585.8,37.0]
[1744274001907,4.46926,1585.9,1585.8,37.0]
[1744274002307,2.94622,1586.0,1585.8,37.0]
[1744274002613,2.94622,1586.0,1585.7,1.26159]
[1744274002614,1.2617,1585.6,1585.5,14.74361736]
[1744274002914,8.39582344,1585.6,1585.5,14.74361736]
[1744274003214,7.13412344,1585.6,1585.5,53.00539736]
[1744274003415,3.92632344,1585.6,1585.5,51.74361736]
[1744274003612,3.2078,1585.6,1585.1,19.85006347]
[1744274003805,2.4074,1585.5,1585.3,1.26192]
[1744274004011,1.5905,1585.4,1585.3,1.26194]
[1744274004208,1.5905,1585.4,1585.3,38.26194]
[1744274004613,1.5905,1585.4,1585.3,43.26194]
[1744274004811,1.5905,1585.4,1585.3,41.30407395]
[1744274005006,3.92632344,1585.6,1585.3,40.04213395]
[1744274005312,1.5905,1585.5,1585.4,1.26186]
[1744274006010,1.5905,1585.5,1585.1,17.95141736]
[1744274006311,9.98962344,1585.4,1585.1,14.74361736]
[1744274006511,1.649,1585.3,1585.2,37.0]
[1744274006723,2.91094,1585.3,1585.2,37.0]
[1744274007013,1.649,1585.3,1585.1,16.00568736]
[1744274007213,7.13412344,1585.4,1585.1,14.74361736]
[1744274007512,5.98040344,1585.4,1585.2,37.0]
[1744274007718,1.26202,1585.2,1585.1,14.74361736]
[1744274007913,5.18834344,1585.2,1585.1,12.15743699]
[1744274008114,10.18834344,1585.2,1585.1,12.15743699]
[1744274008315,10.18834344,1585.2,1585.1,9.58943699]
[1744274010214,10.18834344,1585.2,1584.8,24.50387671]
[1744274010215,1.26221,1585.0,1584.8,1.26232]
[1744274010408,3.2078,1584.9,1584.8,1.26232]
[1744274010727,7.13412344,1584.9,1584.2,13.53912699]
[1744274010923,8.39643344,1584.9,1584.6,1.26247]
[1744274011215,3.2078,1584.7,1584.4,5.72908011]
[1744274011411,2.4204,1584.6,1584.5,1.26252]
[1744274011606,1.5905,1584.6,1584.5,1.26252]
[1744274011810,4.0427,1584.7,1584.6,1.2625]
[1744274012019,5.64264019,1584.7,1584.6,1.2625]
[1744274012210,10.64264019,1584.7,1584.2,9.58943699]
[1744274012406,3.2078,1584.3,1584.2,11.29433699]
[1744274012710,3.2078,1584.3,1584.2,12.55715699]
[1744274012906,3.2078,1584.5,1584.2,11.29433699]
[1744274013109,1.68914019,1584.7,1584.5,1.26252]
[1744274013310,0.00944019,1584.7,1584.6,1.2625]
[1744274013508,3.21724019,1584.7,1584.6,1.2625]
[1744274013710,0.00944019,1584.7,1584.6,37.0]
[1744274014119,4.87534019,1584.7,1584.4,1.7049]
[1744274014321,4.87534019,1584.7,1584.4,1.26262]
[1744274014322,1.6581,1584.6,1584.4,1.26262]
[1744274014616,1.6581,1584.6,1584.3,2.96758]
[1744274014617,3.2078,1584.5,1584.3,2.96758]
[1744274014816,1.6581,1584.4,1584.3,1.7049]
[1744274015018,1.6581,1584.4,1584.3,2.96764]
[1744274015217,4.03594019,1584.7,1584.5,1.26252]
[1744274015421,4.03594019,1584.7,1584.4,2.82251]
[1744274015422,7.00287019,1584.7,1584.4,2.82251]
[1744274015610,7.00287019,1584.7,1584.5,1.26258]
[1744274015611,1.7045,1584.6,1584.5,1.26258]
[1744274015818,1.7045,1584.6,1584.5,2.82248]
[1744274016117,0.82814019,1584.7,1584.5,2.82244]
[1744274016319,0.82814019,1584.7,1584.6,1.5599]
[1744274016813,0.00944019,1584.7,1584.6,2.8224]
[1744274017213,0.00944019,1584.7,1584.6,8.37227123]
[1744274017523,8.39608344,1585.3,1585.0,1.26212]
[1744274017707,8.39608344,1585.3,1585.1,1.5599]
[1744274017708,1.7045,1585.2,1585.1,1.5599]
[1744274018021,14.45679858,1585.9,1585.3,3.1547]
[1744274018216,12.23497514,1585.9,1585.4,1.5599]
[1744274018414,1.26178,1585.5,1585.4,1.5599]
[1744274018720,4.46958,1585.5,1585.4,37.0]
[1744274018917,1.26186,1585.4,1585.3,0.00944019]
[1744274019223,1.5534,1585.4,1585.3,0.00944019]
[1744274019418,1.5534,1585.4,1585.3,2.94468019]
[1744274019617,3.2078,1585.5,1585.3,2.94468019]
[1744274019814,1.5534,1585.6,1585.4,2.93511]
[1744274020015,3.2078,1585.7,1585.4,1.6733]
[1744274020322,3.2078,1585.7,1585.5,1.26175]
[1744274020524,4.7612,1585.7,1585.6,1.6733]
[1744274020822,3.21724019,1585.8,1585.6,1.6733]
[1744274021029,3.21724019,1585.8,1585.7,1.26162]
[1744274021326,0.00944019,1585.8,1585.7,1.26162]
[1744274021623,0.00944019,1585.8,1585.7,2.82882]
[1744274021824,1.6535,1586.2,1586.1,1.2613]
[1744274022120,0.7768,1586.3,1585.7,5.5577]
[1744274022321,4.8613,1586.2,1585.7,8.71169]
[1744274022618,7.13412344,1586.4,1586.2,1.26117]
[1744274022818,6.12236,1586.4,1586.3,1.5672]
[1744274023025,6.1224,1586.4,1586.1,1.26127]
[1744274023317,3.2078,1586.2,1585.9,1.5672]
[1744274023515,1.6535,1586.4,1586.2,1.2612]
[1744274023516,4.8613,1586.4,1586.2,1.2612]
[1744274023717,4.8613,1586.4,1586.2,42.06122]
[1744274023920,4.8613,1586.4,1586.2,42.3672]
[1744274024317,4.8613,1586.4,1586.3,1.26114]
[1744274024718,4.8613,1586.4,1586.2,40.8]
[1744274025017,6.12237,1586.4,1586.2,40.8]
[1744274025217,1.26114,1586.3,1586.2,40.8]
[1744274025411,2.81794,1586.3,1586.2,40.8]
[1744274025810,1.5568,1586.3,1586.2,40.8]
[1744274026625,1.5568,1586.3,1586.2,42.06122]
[1744274026820,3.2078,1586.4,1586.3,1.26114]
[1744274027123,3.2078,1586.4,1586.2,43.64816]
[1744274027318,3.2078,1586.4,1586.3,1.26114]
[1744274027521,3.2078,1586.4,1586.2,42.387]
[1744274027723,4.46891,1586.4,1586.2,42.387]
[1744274027924,1.6399,1586.3,1586.2,42.387]
[1744274028217,3.2078,1586.4,1586.3,1.26114]
[1744274028524,3.2078,1586.4,1586.2,43.64818]
[1744274028724,4.46887,1586.4,1586.2,43.64818]
[1744274028921,1.26114,1586.3,1586.2,40.8]
[1744274029236,2.90104,1586.3,1586.2,40.8]
[1744274029416,1.6399,1586.3,1586.2,40.8]
[1744274029722,1.6399,1586.3,1586.2,42.06122]
[1744274030023,3.2078,1586.4,1586.2,43.60372]
[1744274030321,3.2078,1586.4,1586.2,43.60369]
[1744274030920,0.00944019,1586.5,1586.2,42.3425]
[1744274031124,0.00944019,1586.5,1586.3,1.2611]
[1744274031422,0.00944019,1586.5,1586.4,2.91676]
[1744274031925,0.00944019,1586.5,1586.4,7.91676]
[1744274032121,0.00944019,1586.5,1586.4,2.91676]
[1744274032321,0.00944019,1586.5,1586.4,1.6557]
[1744274032527,1.65024019,1586.5,1586.4,2.91676]
[1744274032722,0.00944019,1586.5,1586.4,2.91676]
[1744274034727,0.00944019,1586.5,1586.4,43.71676]
[1744274035529,0.00944019,1586.5,1586.4,48.71676]
[1744274035726,3.2078,1587.1,1587.0,1.26059]
[1744274035928,1.33022685,1587.1,1587.0,1.26059]
[1744274036124,4.7881,1587.3,1587.1,1.26045]
[1744274036318,4.7881,1587.3,1587.2,1.26043]
[1744274036514,3.2078,1587.3,1587.2,1.26043]
[1744274036721,4.46815,1587.3,1586.9,2.4723]
[1744274037026,4.8287,1587.3,1587.1,1.26993019]
[1744274037226,6.08905,1587.3,1587.2,1.5467]
[1744274037421,4.8287,1587.3,1587.1,0.00944019]
[1744274037614,6.08911,1587.3,1587.1,0.00944019]
[1744274037828,1.26043,1587.2,1587.1,0.00944019]
[1744274038128,1.6209,1587.2,1587.1,0.00944019]
[1744274038318,2.88133,1587.2,1587.1,0.00944019]
[1744274039525,1.6209,1587.2,1587.1,0.00944019]
[1744274039926,1.6209,1587.2,1587.1,1.26995019]
[1744274040425,1.6209,1587.2,1587.1,0.00944019]
[1744274040622,5.54722344,1587.2,1587.1,1.26995019]
[1744274040826,3.92632344,1587.2,1587.1,6.26995019]
[1744274041027,3.92632344,1587.2,1587.1,6.90035019]
[1744274041222,0.00944019,1587.4,1587.3,1.26035]
[1744274042226,0.00944019,1587.4,1587.3,6.26035]
[1744274042530,0.00944019,1587.4,1587.3,1.26035]
[1744274042826,0.00944019,1587.4,1587.2,2.86929]
[1744274043031,1.71854019,1587.4,1587.2,1.6089]
[1744274043322,1.71854019,1587.4,1587.3,1.26035]
[1744274043523,0.00944019,1587.4,1587.3,1.26035]
[1744274044030,0.00944019,1587.4,1587.3,6.26035]
[1744274045123,0.00944019,1587.4,1587.3,47.06035]
[1744274046025,7.31323496,1587.7,1587.6,1.26011]
[1744274046329,7.31323496,1587.7,1587.6,4.46791]
[1744274046529,7.31323496,1587.7,1587.6,9.46791]
[1744274046728,2.89215635,1587.7,1587.6,51.82201]
[1744274046926,9.73011163,1587.9,1587.8,1.25995]
[1744274047127,2.4686,1588.3,1587.8,1.25995]
[1744274047128,1.618,1588.3,1588.2,1.25963]
[1744274047434,3.92632344,1588.5,1588.3,1.25951]
[1744274047637,0.00944019,1588.4,1588.3,1.25951]
[1744274048130,1.9e-07,1588.4,1588.3,42.05951]
[1744274048441,9.73011163,1588.8,1588.6,1.25924]
[1744274048623,1.618,1588.7,1588.6,1.25924]
[1744274048935,3.2078,1589.0,1588.7,1.25917]
[1744274049136,4.46683,1589.0,1588.7,1.6469]
[1744274049332,4.46683,1589.0,1588.7,2.90612]
[1744274049636,0.00944019,1589.0,1588.9,1.25908]
[1744274050336,0.00944019,1589.0,1588.9,2.90598]
[1744274050527,0.00944019,1589.0,1588.9,1.6469]
[1744274050727,0.00944019,1589.0,1588.9,2.90598]
[1744274051137,0.00944019,1589.0,1588.9,3.53558]
[1744274051535,1.25908,1588.9,1588.7,0.00944019]
[1744274051748,5.00944019,1589.0,1588.7,0.00944019]
[1744274051749,1.25916,1588.8,1588.7,0.00944019]
[1744274051935,5.00944019,1589.0,1588.7,0.00944019]
[1744274051936,1.26850019,1589.0,1588.7,0.00944019]
[1744274052234,1.25916,1588.8,1588.7,0.00944019]
[1744274052633,7.88326,1588.8,1588.7,0.00944019]
[1744274052834,5.834,1588.9,1588.7,0.00944019]
[1744274053336,5.834,1588.9,1588.7,1.26868019]
[1744274053534,5.834,1588.9,1588.8,1.25916]
[1744274053734,5.834,1589.3,1588.8,1.6968]
[1744274053931,1.25896,1589.1,1588.9,1.25903]
[1744274054139,1.26506381,1589.2,1589.0,1.259]
[1744274054340,1.26506381,1589.2,1588.8,1.6968]
[1744274054341,0.00619381,1589.2,1588.9,4.46684]
[1744274054640,0.00619381,1589.2,1589.1,1.25892]
[1744274055240,0.00619381,1589.2,1589.1,4.46672]
[1744274055735,1.25841,1589.8,1589.6,1.25846]
[1744274055934,1.25841,1589.8,1589.2,3.14709]
[1744274055935,1.25845,1589.7,1589.5,1.25855]
[1744274056239,2.91242,1589.8,1589.6,1.25853]
[1744274056635,1.654,1589.8,1589.6,1.25853]
[1744274056832,1.654,1589.8,1589.7,1.25845]
[1744274057139,1.654,1589.8,1589.7,2.82285]
[1744274057445,0.8394,1589.9,1589.8,1.25837]
[1744274057740,5.834,1590.2,1589.7,42.3644]
[1744274058041,1.25811,1590.2,1589.9,4.46603]
[1744274058236,3.2078,1590.4,1590.0,2.80731]
[1744274058442,1.25813,1590.1,1590.0,1.5491]
[1744274058637,3.14494,1590.3,1589.9,3.2078]
[1744274058837,3.14533,1590.1,1589.7,44.0078]
[1744274059037,1.25851,1589.7,1589.5,6.02492019]
[1744274059249,12.18742,1590.0,1589.5,4.76634019]
[1744274059443,1.25849,1589.7,1589.5,46.82493019]
[1744274059648,5.834,1590.0,1589.5,45.56634019]
[1744274059839,1.25836,1589.9,1589.5,45.56634019]
[1744274060042,5.834,1590.0,1589.9,1.25829]
[1744274060244,1.25823,1590.0,1589.8,1.25834]
[1744274060540,1.2585,1589.7,1589.5,45.27583019]
[1744274060738,1.25853,1589.6,1589.5,4.76634019]
[1744274060943,1.25853,1589.6,1589.5,3.21724019]
[1744274061347,1.2585,1589.7,1589.5,4.47584019]
[1744274061547,5.834,1589.9,1589.6,1.25853]
[1744274061548,3.05593,1589.8,1589.6,1.25853]
[1744274061848,5.834,1589.9,1589.8,1.25837]
[1744274062238,0.3675,1590.1,1589.9,1.25823]
[1744274062449,1.62563,1590.1,1590.0,1.6369]
[1744274063149,0.3675,1590.1,1590.0,1.6369]
[1744274063353,1.25808,1590.2,1590.0,2.8951]
[1744274063641,3.14404,1590.8,1590.1,3.2078]
[1744274063841,3.14404,1590.8,1590.0,1.6369]
[1744274063842,1.25791,1590.4,1590.3,3.2078]
[1744274064043,1.25789,1590.4,1590.3,3.21724019]
[1744274064544,6.25789,1590.4,1590.3,0.00944019]
[1744274065144,1.25789,1590.4,1590.3,0.00944019]
[1744274065342,1.25789,1590.4,1589.9,3.2078]
[1744274065343,1.25821,1590.0,1589.9,3.2078]
[1744274065539,1.25821,1590.0,1589.5,1.25859]
[1744274065540,3.14554,1590.0,1589.8,3.2078]
[1744274065840,1.25847,1589.7,1589.6,3.2078]
[1744274066236,1.25845,1589.7,1589.6,3.2078]
[1744274066435,3.14556,1590.0,1589.6,3.2078]
[1744274066643,1.25829,1589.9,1589.8,3.2078]
[1744274067349,6.25829,1589.9,1589.8,3.2078]
[1744274068648,1.25837,1589.8,1589.7,1e-08]
[1744274068844,1.2586,1589.5,1589.4,3.2078]
[1744274069152,5.834,1589.8,1589.4,3.2078]
[1744274069346,1.2586,1589.5,1589.4,3.2078]
[1744274069542,1.25858,1589.6,1589.4,4.46648]
[1744274069737,5.834,1589.8,1589.5,1.6337]
[1744274069949,1.25837,1589.8,1589.7,3.2078]
[1744274070144,1.26781019,1589.8,1589.7,3.2078]
[1744274070350,1.25853,1589.6,1589.5,1.6337]
[1744274071453,1.25849,1589.7,1589.5,1.6337]
[1744274071752,0.31624019,1589.8,1589.6,3.2078]
[1744274071753,1.26787019,1589.8,1589.6,3.2078]
[1744274072051,1.25845,1589.7,1589.6,3.2078]
[1744274072649,1.2586,1589.5,1589.4,1.5618]
[1744274072844,1.2586,1589.5,1589.4,4.7696]
[1744274073955,1.2586,1589.5,1589.4,3.2078]
[1744274074262,10.834,1589.5,1589.3,0.00944019]
[1744274074446,2.26448,1589.4,1589.3,0.00944019]
[1744274074649,8.09848,1589.4,1589.3,0.00944019]
[1744274074846,13.09848,1589.4,1589.3,0.00944019]
[1744274075757,1.2588,1589.3,1589.1,3.2078]
[1744274075949,1.0058,1589.4,1589.2,1.5933]
[1744274076150,1.25863,1589.5,1589.3,3.2078]
[1744274076449,1.25863,1589.5,1589.4,1.6784]
[1744274076654,3.14632,1589.6,1589.0,10.46278]
[1744274076850,1.25868,1589.4,1589.3,0.00944019]
[1744274078152,13.98087,1589.4,1588.8,3.2078]
[1744274078347,1.25916,1588.8,1588.7,2.93761]
[1744274078549,1.25916,1588.8,1588.7,7.93761]
[1744274079353,0.00944019,1588.9,1588.7,6.6784]
[1744274079554,0.00944019,1588.9,1588.8,4.46696]
[1744274080448,0.00944019,1588.9,1588.8,8.2078]
[1744274080649,1.26852019,1588.9,1588.8,9.46696]
[1744274080852,1.26852019,1588.9,1588.8,3.2078]
[1744274081158,1.25916,1588.8,1588.7,1.6784]
[1744274081359,1.26857019,1588.9,1588.7,2.93762]
[1744274081654,1.26857019,1588.9,1588.8,3.2078]
[1744274082253,0.00944019,1588.9,1588.8,4.46696]
[1744274082759,0.00944019,1588.9,1588.8,5.39986]
[1744274083257,0.00944019,1588.9,1588.8,10.39986]
[1744274083460,1.26852019,1588.9,1588.8,10.39986]
[1744274083655,0.00944019,1588.9,1588.8,5.39986]
[1744274083856,1.26852019,1588.9,1588.8,5.39986]
[1744274084158,1.26852019,1588.9,1588.8,3.2078]
[1744274084548,0.00944019,1588.9,1588.8,4.46696]
[1744274085859,0.00944019,1588.9,1588.8,9.46696]
[1744274086158,0.00944019,1588.9,1588.8,4.46696]
[1744274086357,0.00944019,1588.9,1588.8,10.46296]
[1744274086759,1.26852019,1588.9,1588.8,15.46296]
[1744274087060,0.00944019,1588.9,1588.8,15.46296]
[1744274087361,1.26852019,1588.9,1588.8,3.2078]
[1744274087748,1.25916,1588.8,1588.7,1.6784]
[1744274087953,0.00944019,1588.9,1588.7,1.6784]
[1744274088156,0.00944019,1588.9,1588.8,4.46696]
[1744274088352,0.00944019,1588.9,1588.8,5.48426]
[1744274088965,1.25886,1589.2,1589.1,1.25888]
[1744274089158,1.25886,1589.2,1589.1,4.46668]
[1744274089464,1.25886,1589.2,1588.9,3.2078]
[1744274089465,1.25906,1589.0,1588.9,3.2078]
[1744274090663,1.25916,1588.8,1588.7,1.2592]
[1744274090865,1.25916,1588.8,1588.7,9.467]
[1744274091165,1.2591,1588.9,1588.8,1.2591]
[1744274091361,1.2591,1588.9,1588.8,6.2591]
[1744274091561,1.2591,1588.9,1588.8,5.0]
[1744274091861,1.25914,1588.9,1588.8,1.25914]
[1744274092258,1.25914,1588.9,1588.8,1.5653]
[1744274092663,1.25905,1589.0,1588.8,1.5653]
[1744274092863,1.25905,1589.0,1588.9,4.46686]
[1744274093063,1.26839019,1589.1,1589.0,1.259]
[1744274093267,1.26839019,1589.1,1589.0,2.8243]
[1744274093462,0.00944019,1589.1,1589.0,2.8243]
[1744274093766,0.00944019,1589.1,1589.0,3.8667]
[1744274093966,0.00944019,1589.1,1589.0,4.7415]
[1744274094266,1.26836019,1589.1,1589.0,3.4825]
[1744274095460,1.26836019,1589.1,1589.0,4.7415]
[1744274095762,1.26836019,1589.1,1589.0,3.4825]
[1744274095959,1.26836019,1589.1,1589.0,4.7415]